bitfinex-derivatives/quotes_SOLF0:USTF0_20250505
["timestamp","ask_amount","ask_price","bid_price","bid_amount"]
[1746464704622,6.8919,145.12,145.09,31.293]
[1746464704819,6.8925,145.11,145.09,6.893]
[1746464705023,11.59604543,145.15,145.06,24.28]
[1746464705226,11.59604543,145.12,145.06,24.28]
[1746464705525,35.87604543,145.12,145.04,6.8954]
[1746464705722,35.87604543,145.12,145.03,24.28]
[1746464705923,6.8955,145.05,145.03,24.28]
[1746464706125,24.28,145.08,145.0,24.28]
[1746464706426,6.8954,145.05,145.0,24.28]
[1746464706729,24.28,145.08,145.0,24.28]
[1746464707224,6.8944,145.07,145.04,6.8953]
[1746464707928,6.8947,145.06,145.04,6.8953]
[1746464708428,24.28,145.11,145.0,24.28]
[1746464708726,6.8962,145.03,145.0,24.28]
[1746464708921,24.28,145.06,145.0,31.1773]
[1746464709127,6.8966,145.02,145.0,24.28]
[1746464709626,6.8971,145.01,145.0,24.28]
[1746464709826,35.87604543,145.06,144.97,24.28]
[1746464710029,11.59604543,145.03,144.96,570.1]
[1746464710221,6.8993,144.97,144.94,7.96987364]
[1746464710422,30.4978,145.02,144.94,7.96987364]
[1746464710625,30.4978,145.02,144.93,32.1807]
[1746464710820,30.4978,145.02,144.93,25.28]
[1746464711222,6.8977,145.0,144.93,25.28]
[1746464711527,2.1454,145.02,144.97,6.8986]
[1746464711717,2.1454,145.02,144.93,26.28]
[1746464711921,6.8973,145.01,144.93,26.28]
[1746464712121,6.8973,145.01,144.98,6.8982]
[1746464713630,6.8968,145.02,144.97,24.28]
[1746464714025,24.28,145.05,144.97,24.28]
[1746464715532,6.8976,145.0,144.97,31.1787]
[1746464716027,24.28,145.05,144.97,24.28]
[1746464716328,6.8973,145.01,144.98,6.8985]
[1746464719229,6.8973,145.01,144.99,6.898]
[1746464719530,24.28,145.05,144.97,24.28]
[1746464719729,24.28,145.05,144.99,6.8977]
[1746464720931,24.28,145.05,144.98,6.8983]
[1746464721131,24.28,145.05,144.97,24.28]
[1746464721837,6.8985,144.98,144.97,24.28]
[1746464725133,24.32,145.01,144.93,26.32]
[1746464725638,6.8989,144.98,144.95,6.8996]
[1746464725931,24.32,145.01,144.95,6.8996]
[1746464726134,24.32,145.01,144.93,2.0]
[1746464726327,6.0942,145.0,144.93,2.0]
[1746464726833,6.9004,144.94,144.93,2.0]
[1746464731437,6.9019,144.91,144.86,24.32]
[1746464731838,6.9019,144.91,144.89,6.9027]
[1746464733538,6.9019,144.91,144.88,6.903]
[1746464733937,6.9023,144.9,144.87,6.9036]
[1746464734341,24.32,144.93,144.87,6.9036]
[1746464734638,24.32,144.93,144.85,31.2244]
[1746464734838,4.1367,144.92,144.85,31.2244]
[1746464735234,6.9035,144.88,144.85,31.2244]
[1746464735633,6.904,144.87,144.85,24.32]
[1746464736038,17.81003983,144.92,144.84,6.9051]
[1746464736234,17.81003983,144.92,144.83,6.9055]
[1746464736437,17.81003983,144.92,144.82,24.32]
[1746464736438,17.81003983,144.92,144.81,28.4144]
[1746464736737,11.63663983,144.89,144.81,24.32]
[1746464736939,6.9051,144.85,144.82,6.9059]
[1746464740843,24.32,144.88,144.84,6.9051]
[1746464741041,24.32,144.88,144.81,24.32]
[1746464741447,6.9047,144.85,144.82,6.9059]
[1746464741647,24.32,144.88,144.81,24.32]
[1746464742041,6.9044,144.86,144.84,6.9051]
[1746464742948,6.9044,144.86,144.83,6.9054]
[1746464743742,6.9057,144.83,144.76,4.2188]
[1746464744048,6.9057,144.83,144.76,28.5588]
[1746464744244,6.9043,144.86,144.83,6.9053]
[1746464744546,24.34,144.88,144.77,2.0793]
[1746464744747,24.34,144.88,144.78,24.34]
[1746464745047,6.9049,144.85,144.82,6.906]
[1746464745244,6.9049,144.85,144.78,24.34]
[1746464745737,6.9044,144.86,144.78,24.34]
[1746464746050,24.34,144.88,144.83,6.9053]
[1746464746245,24.34,144.88,144.78,24.34]
[1746464746442,7.37528572,144.92,144.79,18.62546719]
[1746464746643,24.34,144.91,144.79,18.62546719]
[1746464746858,24.34,144.91,144.87,6.9035]
[1746464747549,6.9031,144.89,144.86,6.904]
[1746464747853,24.34,144.91,144.84,24.34]
[1746464748147,6.9028,144.89,144.87,6.9034]
[1746464748354,6.9028,144.89,144.84,24.34]
[1746464749154,6.9028,144.89,144.86,6.9038]
[1746464749453,6.9028,144.89,144.84,24.34]
[1746464749753,6.9028,144.89,144.86,6.9039]
[1746464749954,6.9028,144.89,144.84,24.34]
[1746464750254,6.9028,144.89,144.86,6.9038]
[1746464750950,6.9023,144.9,144.84,24.34]
[1746464751155,24.34,144.91,144.84,24.34]
[1746464751354,24.34,144.91,144.85,2.044]
[1746464751755,548.6424,144.96,144.85,4.1275]
[1746464751955,24.38,144.95,144.86,1.9545]
[1746464752155,6.9012,144.93,144.86,1.9545]
[1746464752757,6.9012,144.93,144.9,6.9019]
[1746464752955,6.9006,144.94,144.88,24.38]
[1746464753157,24.38,144.95,144.88,24.38]
[1746464753554,6.9019,144.91,144.88,24.38]
[1746464753854,24.38,144.95,144.89,6.9024]
[1746464754953,6.9016,144.92,144.89,6.9024]
[1746464756058,6.9016,144.92,144.9,6.9023]
[1746464756259,6.9016,144.92,144.88,24.38]
[1746464756462,6.9019,144.91,144.89,6.9025]
[1746464756658,24.38,144.95,144.88,24.38]
[1746464756857,24.38,144.95,144.85,28.5075]
[1746464757059,24.38,144.95,144.86,6.9041]
[1746464757263,24.38,144.95,144.85,28.5075]
[1746464757566,6.9035,144.88,144.85,35.4118]
[1746464758164,6.9038,144.87,144.85,35.4118]
[1746464758365,24.38,144.91,144.85,24.38]
[1746464760064,6.9031,144.89,144.86,6.904]
[1746464760566,6.9025,144.9,144.87,6.9035]
[1746464760863,24.38,144.91,144.87,6.9035]
[1746464761063,6.903,144.89,144.86,6.904]
[1746464762469,24.38,144.91,144.85,24.38]
[1746464762661,24.38,144.91,144.81,13.58884742]
[1746464762858,24.38,144.91,144.82,24.38]
[1746464763569,24.38,144.91,144.83,1.9635]
[1746464763766,566.5797,144.96,144.84,2.0981]
[1746464763964,24.38,144.95,144.84,13.73234742]
[1746464764165,6.9016,144.92,144.89,6.9024]
[1746464764367,24.38,144.95,144.88,24.38]
[1746464764667,24.38,144.95,144.9,6.902]
[1746464764968,24.38,144.95,144.88,24.38]
[1746464765271,6.9017,144.92,144.88,24.38]
[1746464765768,6.9017,144.92,144.89,6.9023]
[1746464765971,6.9017,144.92,144.88,24.38]
[1746464766273,6.9017,144.92,144.89,6.9024]
[1746464766471,6.9019,144.91,144.88,24.38]
[1746464766871,6.9019,144.91,144.88,31.2829]
[1746464767076,6.9016,144.92,144.88,24.38]
[1746464767272,24.38,144.95,144.88,24.38]
[1746464767465,11.63424742,144.97,144.88,24.38]
[1746464767670,24.38,144.98,144.89,2.0592]
[1746464767969,24.38,144.98,144.95,6.8998]
[1746464768366,5.9701,145.02,144.96,6.8992]
[1746464768571,24.38,145.01,144.92,24.38]
[1746464768966,6.8983,144.99,144.96,6.8992]
[1746464769973,24.38,145.01,144.92,24.38]
[1746464770971,24.38,145.01,144.96,6.8992]
[1746464771273,24.38,145.01,144.92,24.38]
[1746464771772,6.8992,144.97,144.94,6.9]
[1746464771972,24.38,145.01,144.92,24.38]
[1746464772367,24.38,145.01,144.92,31.2813]
[1746464772874,6.9003,144.95,144.92,31.2813]
[1746464773273,6.9003,144.95,144.93,6.9008]
[1746464773473,24.38,145.01,144.92,24.38]
[1746464773973,6.8987,144.98,144.92,24.38]
[1746464774172,24.38,145.01,144.92,24.38]
[1746464774570,6.8979,145.0,144.97,6.8987]
[1746464774872,24.38,145.01,144.92,24.38]
[1746464775069,1.9731,145.02,144.92,24.38]
[1746464775265,24.36,145.04,144.92,24.38]
[1746464775775,4.0117,145.08,144.98,6.8982]
[1746464775978,24.36,145.05,144.96,24.36]
[1746464776366,6.8978,145.0,144.96,24.36]
[1746464776674,24.36,145.05,144.96,24.36]
[1746464776873,6.8969,145.02,144.99,6.8977]
[1746464777074,24.36,145.05,144.97,2.0826]
[1746464777376,4.0117,145.08,144.97,2.0826]
[1746464777576,24.36,145.07,144.97,2.0826]
[1746464778477,24.36,145.07,144.97,6.3343]
[1746464778879,6.8954,145.05,145.03,6.8959]
[1746464779069,28.3717,145.08,145.01,24.36]
[1746464779467,28.3717,145.08,144.99,6.8978]
[1746464779678,28.3717,145.08,144.98,24.48]
[1746464780075,18.5885844,145.06,144.98,24.48]
[1746464780278,18.5885844,145.06,144.96,6.8992]
[1746464780481,32.3780844,145.06,144.96,6.8992]
[1746464780677,6.8983,144.99,144.96,6.8992]
[1746464781993,6.8986,144.98,144.96,6.8992]
[1746464782281,24.48,145.03,144.95,24.48]
[1746464782581,6.899,144.97,144.95,24.48]
[1746464782776,2.0868,145.02,144.95,24.48]
[1746464782976,2.0868,145.02,144.95,31.3795]
[1746464784377,6.8992,144.97,144.95,31.3795]
[1746464784585,6.8992,144.97,144.95,24.48]
[1746464784785,2.0868,145.02,144.95,24.48]
[1746464785085,6.2705,145.02,144.92,31.3811]
[1746464785277,6.2705,145.02,144.92,24.48]
[1746464785678,6.2705,145.02,144.95,6.8998]
[1746464785981,6.2705,145.02,144.93,2.0596]
[1746464786182,6.2705,145.02,144.96,6.8993]
[1746464786484,6.2705,145.02,144.93,2.0596]
[1746464787084,6.8994,144.97,144.94,6.9002]
[1746464787285,6.2705,145.02,144.93,2.0596]
[1746464787779,6.9,144.95,144.93,8.9602]
[1746464787980,6.2705,145.02,144.93,2.0596]
[1746464788388,6.9006,144.94,144.92,24.48]
[1746464789679,24.48,144.99,144.92,24.48]
[1746464790085,24.48,144.99,144.9,1.0]
[1746464790287,6.9016,144.92,144.9,1.0]
[1746464790686,24.48,144.99,144.9,1.0]
[1746464790880,6.9008,144.94,144.9,1.0]
[1746464791184,24.48,144.99,144.9,1.0]
[1746464791379,24.48,144.99,144.92,6.9011]
[1746464791584,24.48,144.99,144.9,1.0]
[1746464791985,24.48,144.99,144.94,6.9001]
[1746464792176,24.48,144.99,144.93,24.48]
[1746464792383,24.48,144.99,144.9,25.48]
[1746464792682,24.48,144.99,144.91,6.9016]
[1746464792877,24.48,144.99,144.9,25.48]
[1746464793588,6.9002,144.95,144.92,6.9011]
[1746464793784,24.48,144.99,144.9,25.48]
[1746464794488,6.9007,144.94,144.91,6.9015]
[1746464795088,6.9007,144.94,144.92,6.9012]
[1746464795688,6.8998,144.96,144.9,25.48]
[1746464795891,24.48,144.99,144.9,25.48]
[1746464796285,24.48,144.99,144.92,6.9011]
[1746464796484,24.48,144.99,144.9,25.48]
[1746464796786,6.9012,144.93,144.9,32.382]
[1746464796982,24.48,144.99,144.9,32.382]
[1746464797590,6.9013,144.93,144.9,32.382]
[1746464797791,24.48,144.99,144.9,25.48]
[1746464798188,6.9014,144.92,144.9,25.48]
[1746464798494,24.48,144.99,144.9,25.48]
[1746464798986,6.9017,144.92,144.9,25.48]
[1746464799186,24.48,144.99,144.9,25.48]
[1746464799388,6.9011,144.93,144.9,25.48]
[1746464799591,6.9011,144.93,144.9,32.382]
[1746464799788,6.9015,144.92,144.9,25.48]
[1746464799989,24.48,144.99,144.9,25.48]
[1746464800191,24.48,144.99,144.9,1.0]
[1746464800395,6.9018,144.91,144.9,1.0]
[1746464801387,6.9015,144.92,144.9,1.0]
[1746464802188,6.9018,144.91,144.9,1.0]
[1746464804992,6.9016,144.92,144.9,1.0]
[1746464805188,24.48,144.95,144.9,1.0]
[1746464805594,6.9011,144.93,144.91,6.9016]
[1746464806189,24.48,144.95,144.9,1.0]
[1746464806490,6.9018,144.91,144.9,1.0]
[1746464806888,6.9011,144.93,144.9,1.0]
[1746464807191,24.48,144.95,144.9,1.0]
[1746464807487,6.9015,144.92,144.9,7.9021]
[1746464808600,6.9011,144.93,144.9,7.9021]
[1746464808795,6.9011,144.93,144.91,6.9018]
[1746464809293,6.9006,144.94,144.92,6.9013]
[1746464809499,24.48,144.95,144.9,1.0]
[1746464809997,6.9006,144.94,144.9,1.0]
[1746464810690,6.9006,144.94,144.91,6.9017]
[1746464811301,6.9006,144.94,144.92,6.9012]
[1746464811505,2.1347,144.97,144.9,25.68]
[1746464812006,2.1347,144.97,144.93,6.9005]
[1746464812204,6.9,144.95,144.93,6.9005]
[1746464812903,2.1347,144.97,144.9,25.68]
[1746464812904,6.8992,144.97,144.9,25.68]
[1746464813203,6.8992,144.97,144.91,4.1857]
[1746464813704,6.8996,144.96,144.91,4.1857]
[1746464813904,26.6921,145.0,144.91,4.1857]
[1746464814305,6.8992,144.97,144.91,4.1857]
[1746464814505,24.68,145.0,144.91,4.1857]
[1746464814803,24.68,145.0,144.92,1.9951]
[1746464815003,6.8982,144.99,144.92,1.9951]
[1746464815204,24.68,145.0,144.92,1.9951]
[1746464815803,6.8988,144.98,144.95,6.8996]
[1746464816303,6.8988,144.98,144.94,24.68]
[1746464817207,6.899,144.97,144.95,6.8997]
[1746464817505,24.68,145.0,144.95,6.8997]
[1746464817801,24.68,145.0,144.94,31.5802]
[1746464817999,24.68,145.0,144.94,24.68]
[1746464818803,6.8993,144.97,144.94,31.5803]
[1746464819006,24.68,145.0,144.94,24.68]
[1746464819406,6.8997,144.96,144.94,24.68]
[1746464820101,6.8997,144.96,144.94,31.5801]
[1746464820297,24.68,145.0,144.94,31.5801]
[1746464820503,6.8992,144.97,144.94,31.5801]
[1746464820800,24.68,145.0,144.94,24.68]
[1746464822411,24.68,145.0,144.91,28.8657]
[1746464822606,24.68,145.0,144.93,6.9006]
[1746464823608,24.68,145.0,144.92,6.9012]
[1746464823809,11.62609681,144.99,144.91,26.7256]
[1746464824006,6.9013,144.92,144.91,24.68]
[1746464824207,6.9013,144.92,144.9,1.0]
[1746464825411,6.9011,144.93,144.9,1.0]
[1746464826114,6.9011,144.93,144.9,7.9023]
[1746464826317,6.9011,144.93,144.9,1.0]
[1746464826814,6.9011,144.93,144.9,7.902]
[1746464827015,6.9011,144.93,144.9,1.0]
[1746464827213,6.9006,144.94,144.9,1.0]
[1746464827413,6.9006,144.94,144.91,6.9017]
[1746464827708,6.9,144.95,144.9,1.0]
[1746464828109,24.68,144.96,144.94,6.9004]
[1746464828311,6.8992,144.97,144.9,1.0]
[1746464828514,6.8992,144.97,144.91,2.0669]
[1746464828808,6.8995,144.96,144.92,24.68]
[1746464829014,38.34949681,144.99,144.92,24.68]
[1746464829417,38.34949681,144.99,144.93,6.9008]
[1746464829917,6.8999,144.96,144.93,6.9008]
[1746464830319,38.34949681,144.99,144.93,6.9008]
[1746464830520,6.9002,144.95,144.93,6.9008]
[1746464831820,6.9002,144.95,144.92,31.5811]
[1746464832020,6.9002,144.95,144.92,24.68]
[1746464832519,6.9002,144.95,144.93,6.9006]
[1746464838918,6.8996,144.96,144.93,6.9006]
[1746464839826,6.8999,144.95,144.93,6.9006]
[1746464841225,38.34949681,144.99,144.93,6.9006]
[1746464841226,6.8997,144.96,144.93,6.9006]
[1746464841429,38.34949681,144.99,144.92,1.0]
[1746464841619,1.9729,144.98,144.92,1.0]
[1746464841817,6.9009,144.93,144.92,1.0]
[1746464843931,6.9006,144.94,144.92,1.0]
[1746464846034,6.9009,144.93,144.92,1.0]
[1746464847432,11.62609681,144.93,144.86,6.9041]
[1746464847631,4.0934,144.92,144.86,6.9041]
[1746464847827,6.9035,144.88,144.84,24.52]
[1746464848131,6.9035,144.88,144.85,6.9045]
[1746464848436,6.9035,144.88,144.86,6.9041]
[1746464849037,6.903,144.89,144.86,6.9041]
[1746464849240,24.52,144.91,144.84,24.52]
[1746464849535,6.9038,144.87,144.84,24.52]
[1746464850037,6.9038,144.87,144.84,31.4248]
[1746464850235,24.52,144.91,144.84,31.4248]
[1746464850539,24.52,144.91,144.84,31.4249]
[1746464850936,6.9043,144.86,144.84,31.4249]
[1746464851540,6.904,144.87,144.84,31.4249]
[1746464851842,11.62609681,144.9,144.82,6.9059]
[1746464852332,6.905,144.85,144.82,6.9059]
[1746464853040,6.9044,144.86,144.83,6.9055]
[1746464853547,6.9047,144.85,144.83,6.9055]
[1746464854646,6.9047,144.85,144.82,6.9059]
[1746464857642,6.9047,144.85,144.83,6.9056]
[1746464859249,6.9047,144.85,144.82,6.9059]
[1746464860250,6.9047,144.85,144.83,6.9056]
[1746464860947,24.52,144.91,144.81,26.615]
[1746464861148,24.52,144.91,144.81,28.6953]
[1746464861450,6.903,144.89,144.86,6.9038]
[1746464861646,24.52,144.91,144.86,6.9038]
[1746464862451,6.903,144.89,144.86,6.9038]
[1746464863746,31.4222,144.91,144.81,28.6953]
[1746464863952,4.0934,144.92,144.81,28.6953]
[1746464863953,26.566,144.94,144.85,11.62609681]
[1746464864145,24.54,144.94,144.86,26.6531]
[1746464864345,6.9018,144.91,144.89,6.9024]
[1746464864647,24.54,144.94,144.86,26.6531]
[1746464864847,6.9025,144.9,144.87,6.9034]
[1746464865047,6.9025,144.9,144.86,26.6531]
[1746464866655,6.9025,144.9,144.87,6.9036]
[1746464866952,6.9025,144.9,144.86,26.6531]
[1746464867354,6.9025,144.9,144.87,6.9036]
[1746464867954,6.9028,144.89,144.87,6.9036]
[1746464869052,6.9028,144.89,144.86,31.444]
[1746464869253,6.9028,144.89,144.86,24.54]
[1746464869552,6.9028,144.89,144.86,31.4439]
[1746464869953,6.9028,144.89,144.86,24.54]
[1746464870554,6.9028,144.89,144.87,6.9034]
[1746464873758,6.9025,144.9,144.87,6.9034]
[1746464874056,6.9025,144.9,144.88,6.9032]
[1746464878761,6.9025,144.9,144.87,6.9035]
[1746464878960,6.9025,144.9,144.86,24.54]
[1746464879260,6.9025,144.9,144.87,6.9036]
[1746464879760,6.9028,144.89,144.87,6.9036]
[1746464880162,6.1643,144.93,144.86,31.444]
[1746464880464,6.9037,144.88,144.86,24.54]
[1746464881959,6.9037,144.87,144.86,24.54]
[1746464882166,6.9037,144.87,144.83,26.541]
[1746464882366,19.9665,144.93,144.83,26.541]
[1746464882665,6.9035,144.88,144.86,6.9042]
[1746464883563,6.9026,144.9,144.83,26.541]
[1746464883769,6.1643,144.93,144.83,26.541]
[1746464883969,6.9036,144.88,144.85,6.9044]
[1746464884268,6.1643,144.93,144.85,6.9044]
[1746464884469,6.9036,144.88,144.85,6.9044]
[1746464885668,6.9036,144.88,144.86,6.9042]
[1746464886063,6.9026,144.9,144.83,26.541]
[1746464886262,6.9026,144.9,144.88,6.903]
[1746464886467,24.54,144.94,144.85,11.62609681]
[1746464886668,24.54,144.94,144.86,4.1138]
[1746464886971,6.9014,144.92,144.9,6.9021]
[1746464887270,24.54,144.94,144.87,24.58]
[1746464887570,6.9014,144.92,144.89,6.9028]
[1746464888771,6.9019,144.91,144.89,6.9028]
[1746464890173,6.9016,144.92,144.9,6.9023]
[1746464890476,24.54,144.94,144.87,24.58]
[1746464890671,6.9006,144.94,144.91,6.9014]
[1746464890874,24.58,144.98,144.88,13.60479681]
[1746464891267,6.8997,144.96,144.94,6.9001]
[1746464891469,24.58,144.98,144.94,6.9001]
[1746464891977,26.5487,145.01,144.96,6.8994]
[1746464892469,26.5487,145.01,144.97,6.8989]
[1746464892679,26.5487,145.01,144.92,28.7187]
[1746464892971,11.62609681,145.05,145.0,6.8973]
[1746464893168,24.58,145.04,144.96,24.58]
[1746464893567,31.4759,145.04,145.01,6.8968]
[1746464893776,6.8959,145.04,145.01,6.8968]
[1746464894076,8.27413488,145.05,144.96,24.58]
[1746464894269,8.27413488,145.05,144.97,11.62609681]
[1746464894669,6.8957,145.04,145.0,6.8972]
[1746464894869,1.37883488,145.05,145.0,24.58]
[1746464895374,24.58,145.07,145.0,24.58]
[1746464895778,6.8961,145.04,145.0,31.4775]
[1746464895975,24.58,145.07,145.0,24.58]
[1746464896271,6.8958,145.04,145.01,6.8966]
[1746464896483,24.58,145.07,145.0,24.58]
[1746464897578,6.8965,145.03,145.0,31.4775]
[1746464898578,24.58,145.07,145.0,24.58]
[1746464899180,24.58,145.07,145.0,31.4772]
[1746464899378,24.58,145.07,145.0,24.58]
[1746464899680,6.8959,145.04,145.01,6.8968]
[1746464899873,24.58,145.07,145.01,6.8968]
[1746464900883,6.8963,145.03,145.0,31.4774]
[1746464901778,6.8963,145.03,145.01,6.897]
[1746464902080,6.8958,145.04,145.01,6.897]
[1746464902482,6.8962,145.03,145.0,31.4774]
[1746464903583,6.8969,145.02,145.0,24.58]
[1746464903778,24.58,145.07,144.99,1.0]
[1746464903779,11.62609681,145.05,144.99,1.0]
[1746464904284,6.8969,145.02,144.99,7.8979]
[1746464904582,24.58,145.07,144.99,1.0]
[1746464904784,6.8959,145.04,145.01,6.8969]
[1746464904981,24.58,145.07,144.99,1.0]
[1746464905283,6.8959,145.04,145.01,6.8969]
[1746464905786,24.58,145.07,144.99,1.0]
[1746464906584,6.8964,145.03,145.0,6.8973]
[1746464907185,6.8967,145.02,144.99,7.8979]
[1746464907982,6.8967,145.02,145.0,6.8975]
[1746464908286,6.8971,145.01,144.99,1.0]
[1746464908690,26.69,145.07,144.99,7.8979]
[1746464908987,6.8968,145.02,144.99,7.8979]
[1746464910686,6.8968,145.02,145.0,6.8975]
[1746464910886,6.8963,145.03,145.0,6.8975]
[1746464911585,6.8963,145.03,145.01,6.8971]
[1746464912989,6.8963,145.03,145.0,6.8973]
[1746464913286,6.8966,145.02,145.0,6.8973]
[1746464914187,6.8963,145.03,145.0,6.8973]
[1746464914484,24.54,145.12,145.01,24.54]
[1746464914788,36.16609681,145.12,145.01,24.54]
[1746464914988,36.16609681,145.12,145.02,6.8964]
[1746464915286,36.16609681,145.12,145.01,28.6558]
[1746464915481,49.95029681,145.12,145.01,28.6558]
[1746464915683,11.62609681,145.09,145.01,28.6558]
[1746464915883,24.52,145.08,144.99,25.52]
[1746464916083,11.62609681,145.06,144.99,25.52]
[1746464916484,6.8974,145.01,144.99,25.52]
[1746464916685,11.62609681,145.06,144.99,25.52]
[1746464917593,6.8975,145.0,144.99,25.52]
[1746464918695,6.8975,145.0,144.99,1.0]
[1746464918995,6.8994,144.96,144.95,24.52]
[1746464919188,36.14609681,145.0,144.92,24.52]
[1746464919588,6.9009,144.93,144.92,24.52]
[1746464919786,2.0802,144.99,144.9,24.52]
[1746464919987,4.151,144.99,144.9,24.52]
[1746464920188,6.9016,144.92,144.9,24.52]
[1746464920800,6.901,144.93,144.9,24.52]
[1746464921004,11.62609681,144.97,144.9,24.52]
[1746464922505,6.9008,144.94,144.9,24.52]
[1746464923108,6.9001,144.95,144.9,24.52]
[1746464923607,11.62609681,144.97,144.9,31.4221]
[1746464923807,6.9,144.95,144.9,31.4221]
[1746464924108,6.9,144.95,144.91,6.9016]
[1746464924909,6.9,144.95,144.92,6.9012]
[1746464925209,6.9,144.95,144.9,24.52]
[1746464926008,6.9,144.95,144.92,6.9012]
[1746464926210,6.9006,144.94,144.9,24.52]
[1746464926806,6.9006,144.94,144.91,6.9016]
[1746464927207,6.9001,144.95,144.9,24.52]
[1746464927511,6.9001,144.95,144.92,6.9013]
[1746464928012,6.9005,144.94,144.91,6.9016]
[1746464928811,11.62609681,144.97,144.9,31.422]
[1746464929011,11.62609681,144.97,144.9,24.52]
[1746464929413,11.62609681,144.97,144.91,6.9016]
[1746464929712,11.62609681,144.97,144.9,24.52]
[1746464929914,6.9016,144.92,144.9,24.52]
[1746464931008,45.23,144.96,144.76,95.63848378]
[1746464931213,11.62609681,144.97,144.79,32.40278445]
[1746464931214,11.64140087,144.89,144.79,32.40278445]
[1746464931516,6.906,144.83,144.79,32.40278445]
[1746464931708,28.6725,144.88,144.79,32.40278445]
[1746464932210,6.905,144.85,144.78,63.85048445]
[1746464932612,6.905,144.85,144.79,6.9074]
[1746464932813,6.9044,144.86,144.78,56.94278445]
[1746464933116,6.9044,144.86,144.8,6.9067]
[1746464934016,6.9044,144.86,144.81,6.9064]
[1746464934417,6.9047,144.85,144.81,6.9064]
[1746464935518,6.9047,144.85,144.82,6.906]
[1746464936219,6.9047,144.85,144.83,6.9056]
[1746464938317,6.9047,144.85,144.82,6.9059]
[1746464939114,6.9044,144.86,144.83,6.9056]
[1746464939721,6.9047,144.85,144.83,6.9056]
[1746464940420,6.9047,144.85,144.82,6.9059]
[1746464942224,28.6725,144.88,144.81,6.9064]
[1746464942414,2.16,144.87,144.78,24.54]
[1746464942913,6.9054,144.84,144.78,24.54]
[1746464943423,6.9049,144.85,144.78,24.54]
[1746464943623,2.16,144.87,144.78,24.54]
[1746464944119,6.9047,144.85,144.82,6.9058]
[1746464945426,6.9044,144.86,144.83,6.9056]
[1746464946228,6.9047,144.85,144.83,6.9056]
[1746464947130,6.9047,144.85,144.82,6.9059]
[1746464948226,28.6725,144.88,144.82,6.9059]
[1746464948427,6.9053,144.84,144.81,6.9064]
[1746464948930,6.9049,144.85,144.82,6.9061]
[1746464950532,28.6725,144.88,144.83,6.9056]
[1746464951130,28.6725,144.88,144.82,6.9059]
[1746464951532,28.6725,144.88,144.78,24.54]
[1746464952026,26.6296,144.88,144.78,24.54]
[1746464952231,24.54,144.88,144.78,24.54]
[1746464952430,31.4436,144.88,144.78,24.54]
[1746464952830,31.4436,144.88,144.85,6.9045]
[1746464953733,6.9038,144.87,144.85,6.9045]
[1746464954026,24.54,144.88,144.82,24.54]